bitfinex/quotes_SOLUSD_20251124
["timestamp","ask_amount","ask_price","bid_price","bid_amount"]
[1763953763357,0.86224459,133.22,133.21,61.31087458]
[1763953765158,5.38162735,133.22,133.21,61.31087458]
[1763953765358,5.38162735,133.22,133.17,61.98087458]
[1763953765536,0.7,133.21,133.17,61.98087458]
[1763953765739,0.7,133.21,133.18,0.67]
[1763953766956,4.68162735,133.22,133.18,0.67]
[1763953767162,0.7,133.21,133.18,0.67]
[1763953768251,0.16224459,133.22,133.18,8.17853856]
[1763953768563,0.16224459,133.22,133.19,0.67]
[1763953768975,0.86224459,133.22,133.19,0.67]
[1763953769264,0.86224459,133.22,133.19,61.98087458]
[1763953769768,0.86224459,133.22,133.19,61.31087458]
[1763953769971,0.86224459,133.22,133.19,61.98087458]
[1763953770266,0.16224459,133.22,133.19,61.31087458]
[1763953770563,0.16224459,133.22,133.2,0.67]
[1763953772571,0.16224459,133.22,133.2,61.98087458]
[1763953774064,0.86224459,133.22,133.2,61.31087458]
[1763953774967,0.14674464,133.21,133.2,61.31087458]
[1763953775371,0.14674464,133.21,133.2,61.98087458]
[1763953777345,0.14674464,133.21,133.2,61.31087458]
[1763953777671,5.3661274,133.21,133.2,61.31087458]
[1763953778376,0.14674464,133.21,133.2,61.98087458]
[1763953778559,0.14674464,133.21,133.2,61.31087458]
[1763953779571,0.14674464,133.21,133.2,61.98087458]
[1763953780145,0.84674464,133.21,133.2,61.31087458]
[1763953780772,5.3661274,133.21,133.2,61.31087458]
[1763953782485,0.84674464,133.21,133.2,61.31087458]
[1763953787781,0.14674464,133.21,133.2,61.31087458]
[1763953787962,0.14674464,133.21,133.2,62.01087458]
[1763953788676,0.14674464,133.21,133.2,61.31087458]
[1763953788877,3.698279,133.21,133.17,61.31087458]
[1763953789185,0.66,133.2,133.17,62.01087458]
[1763953789378,0.80674464,133.21,133.18,0.7]
[1763953789584,3.698279,133.21,133.18,0.7]
[1763953789766,3.698279,133.21,133.17,61.31087458]
[1763953789965,3.55153436,133.2,133.17,61.31087458]
[1763953790375,0.66,133.19,133.17,61.31087458]
[1763953791083,3.55153436,133.2,133.17,62.01087458]
[1763953791480,3.038279,133.21,133.17,61.31087458]
[1763953791684,0.80674464,133.21,133.18,0.7]
[1763953791881,0.14674464,133.21,133.18,0.7]
[1763953792085,0.66,133.2,133.17,62.01087458]
[1763953793782,0.66,133.2,133.17,61.31087458]
[1763953794096,3.55153436,133.2,133.17,62.01087458]
[1763953794882,0.14893338,133.18,133.17,62.01087458]
[1763953797593,0.14893338,133.18,133.17,61.31087458]
[1763953800101,0.14893338,133.18,133.17,62.01087458]
[1763953800596,0.14893338,133.18,133.17,64.90240894]
[1763953800795,0.14893338,133.18,133.17,72.4116077]
[1763953801096,0.14893338,133.18,133.17,64.90240894]
[1763953801598,0.14893338,133.18,133.17,61.31087458]
[1763953803304,0.14893338,133.18,133.16,0.8]
[1763953803305,3.70046774,133.18,133.16,0.1]
[1763953803481,0.66,133.17,133.16,0.1]
[1763953805308,6.89153436,133.17,133.16,0.1]
[1763953806277,3.34,133.17,133.16,0.8]
[1763953806490,4.0,133.17,133.16,0.1]
[1763953807309,3.34,133.17,133.16,0.1]
[1763953807621,3.34,133.17,133.16,0.8]
[1763953807784,0.14893338,133.18,133.16,0.8]
[1763953808296,0.14893338,133.18,133.16,62.11087458]
[1763953808495,0.14893338,133.18,133.16,65.00240894]
[1763953808697,0.14893338,133.18,133.17,3.59153436]
[1763953808904,0.14893338,133.18,133.17,64.90240894]
[1763953810088,0.14893338,133.18,133.17,72.4116077]
[1763953812394,0.14893338,133.18,133.17,69.52007334]
[1763953812609,0.14893338,133.18,133.17,72.4116077]
[1763953814908,0.29158258,133.18,133.17,72.4116077]
[1763953815412,0.29158258,133.18,133.17,64.90240894]
[1763953815800,0.29158258,133.18,133.17,79.43183458]
[1763953816210,0.29158258,133.18,133.17,80.12183458]
[1763953816412,0.1426492,133.18,133.17,83.01336894]
[1763953816618,0.1426492,133.18,133.17,82.32336894]
[1763953816820,0.1426492,133.18,133.17,83.01336894]
[1763953817792,0.1426492,133.18,133.17,62.00087458]
[1763953818495,0.1426492,133.18,133.17,61.31087458]
[1763953819315,0.8526492,133.18,133.17,61.31087458]
[1763953819823,0.8526492,133.18,133.16,0.1]
[1763953820394,3.74418356,133.18,133.16,0.1]
[1763953820596,2.89153436,133.17,133.16,0.1]
[1763953820898,3.60153436,133.17,133.16,0.1]
[1763953821096,14.69557009,133.17,133.16,0.1]
[1763953821828,32.81653009,133.17,133.16,0.1]
[1763953822593,32.81653009,133.17,133.12,0.1]
[1763953822594,18.12096,133.14,133.12,0.1]
[1763953822794,2.89153436,133.13,133.12,0.1]
[1763953823101,3.60153436,133.13,133.12,0.1]
[1763953824915,25.06249436,133.13,133.12,0.1]
[1763953826520,28.07465596,133.13,133.12,0.1]
[1763953830239,9.95369596,133.13,133.12,0.1]
[1763953831118,21.8431216,133.13,133.12,0.1]
[1763953831318,28.07465596,133.13,133.12,0.1]
[1763953831523,25.06249436,133.13,133.12,0.1]
[1763953831847,4.05,133.13,133.12,0.1]
[1763953832736,6.94153436,133.13,133.12,0.1]
[1763953833946,4.05,133.13,133.12,0.1]
[1763953834329,6.94153436,133.13,133.12,0.1]
[1763953834931,7.10123422,133.13,133.12,0.1]
[1763953835333,3.05123422,133.13,133.12,0.1]
[1763953835535,6.39123422,133.13,133.12,0.1]
[1763953835935,7.10123422,133.13,133.12,0.1]
[1763953837054,3.49969986,133.13,133.12,0.79]
[1763953837432,3.49969986,133.13,133.12,0.1]
[1763953838859,3.49969986,133.13,133.12,0.79]
[1763953843449,3.49969986,133.13,133.12,62.89]
[1763953843643,3.49969986,133.13,133.12,62.2]
[1763953843851,3.49969986,133.13,133.12,62.89]
[1763953844050,3.49969986,133.13,133.12,62.2]
[1763953845467,25.23219422,133.13,133.12,62.2]
[1763953845667,25.23219422,133.13,133.12,0.1]
[1763953850076,21.62065986,133.13,133.12,0.1]
[1763953851262,22.28065986,133.13,133.12,0.1]
[1763953851943,21.62065986,133.13,133.12,0.1]
[1763953852142,3.49969986,133.13,133.12,0.79]
[1763953852352,0.15969986,133.13,133.12,0.79]
[1763953852541,0.15969986,133.13,133.12,0.1]
[1763953852542,26.80501419,133.13,133.12,0.1]
[1763953853270,21.62065986,133.13,133.12,0.1]
[1763953853761,3.49969986,133.13,133.12,0.1]
[1763953854269,26.80501419,133.13,133.12,0.1]
[1763953854753,22.28065986,133.13,133.12,0.1]
[1763953854946,21.77431761,133.13,133.12,0.79]
[1763953855140,3.65335761,133.13,133.12,62.89]
[1763953856561,3.49365775,133.13,133.12,62.89]
[1763953856946,3.49365775,133.13,133.12,62.2]
[1763953857145,3.49365775,133.13,133.12,62.89]
[1763953864258,4.15365775,133.13,133.12,62.2]
[1763953864571,26.79897208,133.13,133.12,62.2]
[1763953864950,3.49365775,133.13,133.12,62.89]
[1763953866365,0.15365775,133.13,133.12,67.41435433]
[1763953866576,0.15365775,133.13,133.12,74.92637356]
[1763953867652,0.15365775,133.13,133.12,62.89]
[1763953869679,0.15365775,133.13,133.12,62.2]
[1763953870154,0.15365775,133.13,133.12,0.1]
[1763953870361,0.15365775,133.13,133.12,0.79]
[1763953874979,0.29711551,133.13,133.12,0.79]
[1763953875688,0.29711551,133.13,133.12,5.31435433]
[1763953876068,0.29711551,133.13,133.12,67.41435433]
[1763953876273,0.31877991,133.14,133.12,74.62925805]
[1763953876491,0.15532452,133.14,133.13,5.18435433]
[1763953877690,0.15532452,133.14,133.13,12.69580929]
[1763953878197,0.15532452,133.14,133.13,15.70570431]
[1763953878371,0.15532452,133.14,133.13,77.5085888]
[1763953878807,0.15532452,133.14,133.13,78.25973429]
[1763953881096,0.15532452,133.14,133.13,75.24983927]
[1763953881481,0.15532452,133.14,133.13,177.24983927]
[1763953881681,0.15532452,133.14,133.13,176.49869378]
[1763953882589,0.15532452,133.14,133.13,171.97433945]
[1763953882791,0.15532452,133.14,133.13,176.49869378]
[1763953887892,0.16096533,133.16,133.15,61.48399396]
[1763953888088,0.16096533,133.16,133.15,66.00834829]
[1763953888293,0.16096533,133.16,133.15,66.66834829]
[1763953889604,0.16096533,133.16,133.15,74.17867498]
[1763953890013,0.16096533,133.16,133.15,66.66834829]
[1763953892096,0.16096533,133.16,133.15,62.14399396]
[1763953893001,0.88096533,133.16,133.15,61.48399396]
[1763953893606,5.40531966,133.16,133.15,61.48399396]
[1763953893786,5.40531966,133.16,133.12,0.1]
[1763953893987,5.24435433,133.15,133.12,0.1]
[1763953894187,0.72,133.15,133.12,0.76]
[1763953894388,18.28192533,133.16,133.12,12.7963272]
[1763953894705,0.88096533,133.16,133.13,4.52435433]
[1763953895128,0.14936152,133.14,133.13,5.18435433]
[1763953895489,0.14936152,133.14,133.12,0.1]
[1763953895811,0.14936152,133.14,133.12,5.28435433]
[1763953895992,0.14936152,133.14,133.12,0.76]
[1763953896706,0.14936152,133.14,133.12,5.28435433]
[1763953898204,0.14936152,133.14,133.13,5.18435433]
[1763953898920,0.14936152,133.14,133.13,5.93549982]
[1763953899715,0.14936152,133.14,133.13,67.41949378]
[1763953902016,0.14936152,133.14,133.13,74.93094874]
[1763953902207,0.14944082,133.15,133.13,194.90254722]
[1763953902514,0.14944082,133.15,133.14,5.18435433]
[1763953903110,0.14944082,133.15,133.14,168.51898677]
[1763953903595,0.14944082,133.15,133.14,176.02987756]
[1763953904119,0.14944082,133.15,133.14,179.36987756]
[1763953906220,0.14944082,133.15,133.14,201.94987756]
[1763953906822,0.16041276,133.16,133.14,201.94987756]
[1763953907024,0.13827173,133.17,133.15,96.64634699]
[1763953907230,0.15545003,133.18,133.17,61.19636071]
[1763953907511,0.15545003,133.18,133.17,69.81163491]
[1763953907716,0.15545003,133.18,133.17,67.14163491]
[1763953908433,0.15545003,133.18,133.17,74.65083367]
[1763953911641,0.83289413,133.21,133.19,60.89799652]
[1763953911944,0.83289413,133.21,133.19,65.42235085]
[1763953912741,0.83289413,133.21,133.19,63.78932526]
[1763953913252,0.83934138,133.2,133.19,60.89799652]
[1763953913459,3.73067012,133.2,133.12,0.77]
[1763953913741,3.73067012,133.2,133.14,2.89132874]
[1763953913742,2.89132874,133.19,133.14,2.89132874]
[1763953913915,0.6,133.19,133.14,2.89132874]
[1763953914212,0.6,133.18,133.15,2.89132874]
[1763953915017,0.13919478,133.16,133.15,2.89132874]
[1763953916944,0.13919478,133.16,133.15,3.56132874]
[1763953918039,0.13919478,133.16,133.15,11.07165543]
[1763953918334,0.13919478,133.16,133.15,8.18032669]
[1763953918732,0.13919478,133.16,133.15,8.93135935]
[1763953922028,0.13919478,133.16,133.15,11.82268809]
[1763953923456,0.15791974,133.17,133.16,59.97880174]
[1763953923653,0.15791974,133.17,133.16,63.54013048]
[1763953926656,0.15791974,133.17,133.16,62.87013048]
[1763953926853,0.15791974,133.17,133.16,63.54013048]
[1763953928537,0.15791974,133.17,133.16,71.04989317]
[1763953930459,0.15791974,133.17,133.16,63.54013048]
[1763953930857,0.75791974,133.17,133.16,59.97880174]
[1763953931544,0.15791974,133.17,133.16,59.97880174]
[1763953933033,0.75791974,133.17,133.16,59.97880174]
[1763953933229,0.75791974,133.17,133.12,0.1]
[1763953933448,0.6,133.16,133.12,3.66132874]
[1763953934358,2.89132874,133.15,133.12,0.1]
[1763953934544,2.89132874,133.14,133.12,0.1]
[1763953934747,0.6,133.13,133.12,0.1]
[1763953935056,0.73574497,133.13,133.12,0.1]
[1763953935258,3.62707371,133.13,133.12,0.1]
[1763953935758,0.73574497,133.13,133.12,0.1]
[1763953935957,0.13574497,133.13,133.12,3.69132874]
[1763953936169,0.13574497,133.13,133.12,2.99132874]
[1763953936343,0.13574497,133.13,133.12,0.1]
[1763953936942,0.13574497,133.13,133.12,2.99132874]
[1763953937558,0.13574497,133.13,133.12,0.1]
[1763953939841,0.13574497,133.13,133.12,63.67013048]
[1763953940265,0.13574497,133.13,133.12,60.07880174]
[1763953940469,0.13574497,133.13,133.12,63.67013048]
[1763953942245,0.13574497,133.13,133.12,60.07880174]
[1763953942450,3.62707371,133.13,133.12,60.07880174]
[1763953943175,0.73574497,133.13,133.12,60.07880174]
[1763953944758,3.62707371,133.13,133.12,0.1]
[1763953948774,3.62707371,133.13,133.12,3.69132874]
[1763953948775,0.13574497,133.13,133.12,3.69132874]
[1763953949269,0.13574497,133.13,133.12,0.1]
[1763953949477,0.73574497,133.13,133.12,0.1]
[1763953950067,0.13574497,133.13,133.12,0.1]
[1763953950376,0.73574497,133.13,133.12,0.1]
[1763953951774,0.13574497,133.13,133.12,0.1]
[1763953952448,0.73574497,133.13,133.12,0.1]
[1763953952965,0.13574497,133.13,133.12,0.1]
[1763953954976,0.28753259,133.13,133.12,0.1]
[1763953956581,0.15178762,133.13,133.12,0.1]
[1763953956779,0.15178762,133.13,133.12,0.8]
[1763953957080,0.15178762,133.13,133.12,0.1]
[1763953958383,0.15178762,133.13,133.12,0.8]
[1763953958580,0.15178762,133.13,133.12,3.69132874]
[1763953959167,0.15178762,133.13,133.12,63.67013048]
[1763953960382,0.15178762,133.13,133.12,60.77880174]
[1763953961273,0.15178762,133.13,133.12,63.67013048]
[1763953961584,0.15178762,133.13,133.12,71.18214971]
[1763953961785,0.14283822,133.17,133.14,18.12096]
[1763953961981,0.66,133.28,133.19,30.08807117]
[1763953962165,7.69955601,133.35,133.19,10.1644908]
[1763953962166,0.66,133.23,133.19,10.1644908]
[1763953962370,2.89132874,133.26,133.21,2.89132874]
[1763953962565,0.66,133.24,133.2,3.59132874]
[1763953963175,0.66,133.24,133.21,2.89132874]
[1763953963685,0.66,133.24,133.2,2.89132874]
[1763953964197,0.82281323,133.22,133.2,2.89132874]
[1763953964791,0.16281323,133.22,133.2,2.89132874]
[1763953964993,0.16281323,133.22,133.21,2.89132874]
[1763953966177,0.16281323,133.22,133.2,2.89132874]
[1763953966380,0.82281323,133.22,133.17,18.77096]
[1763953966573,0.82281323,133.22,133.19,2.89132874]
[1763953967091,0.16281323,133.22,133.2,2.89132874]
[1763953967291,0.16281323,133.22,133.19,0.65]
[1763953967485,0.16281323,133.22,133.2,2.89132874]
[1763953967988,0.16281323,133.22,133.2,62.87013048]
[1763953968367,0.16281323,133.22,133.21,2.89132874]
[1763953969082,0.16281323,133.22,133.21,3.54132874]
[1763953969281,0.16281323,133.22,133.21,2.89132874]
[1763953969884,0.16281323,133.22,133.2,59.97880174]
[1763953970074,0.16281323,133.22,133.2,63.52013048]
[1763953970476,0.16281323,133.22,133.21,2.89132874]
[1763953971675,0.16281323,133.22,133.21,59.97880174]
[1763953971997,0.82281323,133.22,133.21,59.97880174]
[1763953973574,5.34161549,133.22,133.21,59.97880174]
[1763953973776,5.34161549,133.22,133.17,4.51880226]
[1763953974100,0.66,133.21,133.17,4.51880226]
[1763953975089,0.14076068,133.18,133.17,4.51880226]
[1763953976107,0.14645296,133.2,133.18,18.12096]
[1763953976273,0.14645296,133.2,133.19,5.26960937]
[1763953976480,0.14645296,133.2,133.19,5.91960937]
[1763953976902,0.14645296,133.2,133.19,13.42768054]
[1763953978914,0.80645296,133.2,133.19,60.72960885]
[1763953979127,0.80645296,133.2,133.19,59.97880174]
[1763953981904,0.14645296,133.2,133.19,64.497604]
[1763953982241,0.80645296,133.2,133.19,64.497604]
[1763953982518,0.14645296,133.2,133.19,59.97880174]
[1763953982719,0.80645296,133.2,133.19,59.97880174]
[1763953986990,0.14645296,133.2,133.19,59.97880174]
[1763953987397,0.80645296,133.2,133.19,59.97880174]
[1763953988308,0.14645296,133.2,133.19,59.97880174]
[1763953988513,0.80645296,133.2,133.19,60.72960885]
[1763953988715,0.80645296,133.2,133.19,59.97880174]
[1763953989591,18.12096,133.19,133.12,0.1]
[1763953989912,4.51880226,133.18,133.12,5.26880226]
[1763953990105,5.17880226,133.18,133.12,5.26880226]
[1763953990411,0.66,133.17,133.13,4.51880226]
[1763953992614,0.66,133.17,133.12,12.78077401]
[1763953994020,0.66,133.17,133.13,4.51880226]
[1763953994201,0.66,133.17,133.13,12.03023649]
[1763953994917,0.66,133.17,133.13,72.65903823]
[1763953995223,0.14282327,133.14,133.13,169.49023597]
[1763953995513,0.14821281,133.16,133.15,59.68509492]
[1763953997010,0.14821281,133.16,133.15,90.51518387]
[1763953998298,0.14821281,133.16,133.15,192.51518387]
[1763954000801,0.14590928,133.17,133.16,59.53688211]
[1763954001001,0.14590928,133.17,133.16,170.80666063]
[1763954001226,0.14590928,133.17,133.16,166.73568437]
[1763954002521,0.14590928,133.17,133.16,174.24544706]
[1763954002911,0.14590928,133.17,133.16,174.4705759]
[1763954004432,0.14590928,133.17,133.16,192.5915359]
[1763954004616,0.14590928,133.17,133.16,89.9115359]
[1763954004812,0.14590928,133.17,133.16,71.7905759]
[1763954005013,0.14590928,133.17,133.16,89.9115359]
[1763954007614,0.14590928,133.17,133.16,90.5915359]
[1763954007823,0.14590928,133.17,133.16,89.9115359]
[1763954008600,0.14590928,133.17,133.16,59.53688211]
[1763954008601,0.80590928,133.17,133.16,59.53688211]
[1763954009929,0.14590928,133.17,133.16,64.96081321]
[1763954010110,0.14590928,133.17,133.16,72.4705759]
[1763954011616,0.14590928,133.17,133.16,73.22155216]
[1763954012519,0.14747517,133.18,133.17,59.39097283]
[1763954012716,0.14747517,133.18,133.17,71.64410269]
[1763954015025,0.30399651,133.18,133.17,71.64410269]
[1763954015253,0.30399651,133.18,133.17,64.8858238]
[1763954015409,0.30399651,133.18,133.17,72.39502256]
[1763954016527,0.15652134,133.18,133.17,72.39502256]
[1763954018534,0.16433212,133.19,133.18,59.23445149]
[1763954018735,0.16433212,133.19,133.18,63.97838259]
[1763954019633,0.82433212,133.19,133.18,59.23445149]
[1763954023514,0.82433212,133.19,133.18,63.97838259]
[1763954023714,0.16433212,133.19,133.18,63.97838259]
[1763954023936,0.16433212,133.19,133.18,59.23445149]
[1763954024314,0.82433212,133.19,133.18,59.23445149]
[1763954024514,0.82433212,133.19,133.18,63.97838259]
[1763954024813,0.16433212,133.19,133.18,63.97838259]
[1763954025533,0.16433212,133.19,133.18,59.23445149]
[1763954025715,0.16433212,133.19,133.18,63.97838259]
[1763954026334,0.16433212,133.19,133.18,71.48701752]
[1763954026544,0.15325443,133.2,133.19,59.07011937]
[1763954026743,0.15325443,133.2,133.19,167.23485758]
[1763954026931,0.15325443,133.2,133.19,64.48405047]
[1763954027245,0.15325443,133.2,133.19,65.23485758]
[1763954029543,0.15325443,133.2,133.19,72.74292875]
[1763954029956,0.15325443,133.2,133.19,72.07292875]
[1763954030164,5.61718553,133.2,133.13,0.67]
[1763954030342,5.61718553,133.2,133.14,4.7439311]
[1763954030659,0.72,133.19,133.15,4.7439311]
[1763954030861,5.4639311,133.19,133.14,4.7439311]
[1763954031235,5.4639311,133.18,133.14,4.7439311]
[1763954031540,5.4639311,133.18,133.13,22.8648911]
[1763954031744,0.72,133.17,133.13,22.8648911]
[1763954031950,0.72,133.17,133.13,5.4139311]
[1763954032533,0.72,133.17,133.13,3.70862537]
[1763954033229,0.72,133.17,133.13,3.03862537]
[1763954033434,0.72,133.17,133.13,3.70862537]
[1763954033734,0.72,133.17,133.14,3.03862537]
[1763954034432,0.72,133.17,133.15,3.03862537]
[1763954035031,0.14956308,133.16,133.15,3.03862537]
[1763954036331,0.14956308,133.16,133.15,61.38874474]
[1763954036748,0.14956308,133.16,133.15,69.56907143]
[1763954040664,0.15652765,133.19,133.15,69.56907143]
[1763954040665,0.15652765,133.19,133.18,57.90171626]
[1763954040874,0.15652765,133.19,133.18,167.68120512]
[1763954041035,0.15652765,133.19,133.18,166.93034163]
[1763954041842,0.15652765,133.19,133.18,174.43897656]
[1763954042053,0.14315289,133.2,133.18,174.43897656]
[1763954042246,0.14315289,133.2,133.19,4.45943248]
[1763954042454,0.14315289,133.2,133.19,164.36114874]
[1763954042740,0.14315289,133.2,133.19,163.61034163]
[1763954044864,0.14315289,133.2,133.19,171.1184128]
[1763954045359,0.14315289,133.2,133.19,159.90171626]
[1763954045665,0.86315289,133.2,133.19,162.94034163]
[1763954046166,0.86315289,133.2,133.19,3.03862537]
[1763954048365,0.86315289,133.2,133.18,7.50849592]
[1763954048569,0.86315289,133.2,133.19,3.03862537]
[1763954049973,0.86315289,133.2,133.17,76.69267626]
[1763954050268,0.86315289,133.2,133.19,3.03862537]
[1763954051266,0.86315289,133.2,133.19,60.94034163]
[1763954051778,0.14315289,133.2,133.19,60.94034163]
[1763954051954,0.14315289,133.2,133.19,69.1184128]
[1763954055175,0.29442191,133.2,133.19,69.1184128]
[1763954056469,0.15126902,133.2,133.19,69.1184128]
[1763954057269,0.15126902,133.2,133.19,171.1184128]
[1763954059751,0.15126902,133.2,133.19,189.2393728]
[1763954059951,0.15943056,133.22,133.21,57.59798324]
[1763954060158,0.15943056,133.22,133.21,61.387303]
[1763954060752,0.15943056,133.22,133.21,62.087303]
[1763954061261,0.15943056,133.22,133.21,164.087303]
[1763954061462,0.15943056,133.22,133.21,163.33660861]
[1763954061776,0.15943056,133.22,133.21,177.2021779]
[1763954061959,0.15943056,133.22,133.21,174.16355253]
[1763954062275,0.15943056,133.22,133.21,170.84355253]
[1763954064074,0.15943056,133.22,133.21,196.4621779]
[1763954065071,0.86570804,133.26,133.25,56.98631267]
[1763954065265,0.86570804,133.26,133.25,60.02493804]
[1763954067687,0.14570804,133.26,133.25,68.98009751]
[1763954068387,0.15016832,133.27,133.25,30.11474484]
[1763954068591,0.15016832,133.27,133.26,7.05862537]
[1763954069566,0.15016832,133.27,133.26,14.56275263]
[1763954070787,0.15016832,133.27,133.26,7.50412726]
[1763954071084,0.87016832,133.27,133.26,3.03862537]
[1763954071290,0.87016832,133.27,133.25,3.03862537]
[1763954073597,0.87016832,133.27,133.25,60.02493804]
[1763954073797,0.87016832,133.27,133.26,3.03862537]
[1763954074985,1.01568528,133.27,133.26,3.03862537]
[1763954076093,1.01568528,133.27,133.25,60.02493804]
[1763954076301,0.72,133.26,133.25,60.02493804]
[1763954076472,0.72,133.26,133.23,60.02493804]
[1763954077006,0.72,133.26,133.24,3.03862537]
[1763954077375,0.72,133.26,133.23,60.02493804]
[1763954077788,0.72,133.26,133.24,3.03862537]
[1763954078423,0.14551696,133.27,133.25,3.73862537]
[1763954078585,0.14551696,133.27,133.26,3.03862537]
[1763954079877,0.14551696,133.27,133.26,10.54275263]
[1763954080293,0.14551696,133.27,133.26,67.5290653]
[1763954081406,0.86551696,133.27,133.26,60.02493804]
[1763954082490,0.14551696,133.27,133.26,68.97947802]
[1763954082686,0.16080633,133.28,133.26,68.97947802]
[1763954082687,0.16080633,133.28,133.26,112.71906339]
[1763954082879,0.16080633,133.28,133.27,3.73862537]
[1763954083081,0.16080633,133.28,133.27,7.05862537]
[1763954083403,0.16080633,133.28,133.27,14.56218956]
[1763954086292,0.16080633,133.28,133.27,13.86218956]
[1763954086495,0.16080633,133.28,133.27,3.03862537]
[1763954086704,0.16080633,133.28,133.27,10.54218956]
[1763954086907,0.16080633,133.28,133.27,67.52850223]
[1763954088921,0.34077308,133.29,133.28,56.82550634]
[1763954089107,0.3410415,133.3,133.28,225.46893331]
[1763954089306,0.3410415,133.3,133.29,25.17958537]
[1763954089511,0.3410415,133.3,133.29,24.47958537]
[1763954089707,1.0110415,133.3,133.29,21.15958537]
[1763954090523,0.3410415,133.3,133.29,21.15958537]
[1763954091720,0.3410415,133.3,133.29,28.66202366]
[1763954092628,1.0110415,133.3,133.29,22.85700709]
[1763954092930,1.0110415,133.3,133.29,61.56155343]
[1763954093796,1.0110415,133.3,133.29,4.73604709]
[1763954094409,1.0110415,133.3,133.27,82.44963477]
[1763954094410,5.74708859,133.3,133.23,56.82550634]
[1763954094623,0.67,133.29,133.26,22.85700709]
[1763954094823,0.67,133.29,133.27,4.73604709]
[1763954095118,0.15908836,133.28,133.27,4.73604709]
[1763954095506,0.82908836,133.28,133.27,4.73604709]
[1763954097832,0.15908836,133.28,133.27,4.73604709]
[1763954098020,0.82908836,133.28,133.27,4.73604709]
[1763954098910,0.15908836,133.28,133.27,4.73604709]
[1763954099407,0.82908836,133.28,133.27,4.73604709]
[1763954100217,0.15908836,133.28,133.27,4.73604709]
[1763954100424,0.82908836,133.28,133.27,4.73604709]
[1763954100799,0.15908836,133.28,133.27,4.73604709]
[1763954101295,0.15908836,133.28,133.27,12.23961128]
[1763954101619,0.15908836,133.28,133.27,4.73604709]
[1763954102123,0.15908836,133.28,133.27,12.23961128]
[1763954102421,0.15908836,133.28,133.27,189.88607762]
[1763954103209,0.13654048,133.29,133.28,56.66641798]
[1763954103508,0.13654048,133.29,133.28,74.34151336]
[1763954103707,0.13654048,133.29,133.28,69.60546627]
[1763954103910,0.13654048,133.29,133.28,229.66151336]
[1763954104912,0.36279517,133.3,133.28,229.66151336]
[1763954105216,0.36279517,133.3,133.29,24.30725091]
[1763954105418,0.36279517,133.3,133.29,190.47610718]
[1763954105732,0.36279517,133.3,133.29,189.72586336]
[1763954106226,0.36279517,133.3,133.29,171.60490336]
[1763954106403,0.33516602,133.31,133.29,173.60490335]
[1763954106608,0.35059538,133.32,133.3,59.50623463]
[1763954106806,0.35059538,133.32,133.31,4.73604709]
[1763954107007,0.35059538,133.32,133.31,23.55700709]
[1763954108103,0.35059538,133.32,133.31,31.05831981]
[1763954108310,0.35059538,133.32,133.31,31.80845108]
[1763954110041,0.35059538,133.32,133.31,13.68749108]
[1763954110621,0.2,133.36,133.34,55.75604]
[1763954110828,0.87,133.35,133.34,60.49208709]
[1763954111011,0.2,133.35,133.34,60.49208709]
[1763954111514,0.87,133.35,133.34,60.49208709]
[1763954111939,0.87,133.35,133.34,55.75604]
[1763954112343,0.87,133.35,133.31,60.49208709]
[1763954112523,0.67,133.34,133.31,4.73604709]
[1763954112847,0.67,133.34,133.3,62.1]
[1763954113033,0.67,133.34,133.31,4.73604709]
[1763954113249,0.67,133.34,133.32,4.73604709]
[1763954113613,0.67,133.34,133.31,4.73604709]
[1763954114246,0.67,133.34,133.32,4.73604709]
[1763954115030,0.14898144,133.33,133.3,62.1]
[1763954115239,4.88502853,133.33,133.29,4.73604709]
[1763954115421,0.72,133.32,133.29,4.73604709]
[1763954115616,4.73604709,133.31,133.28,18.12096]
[1763954115814,4.73604709,133.29,133.25,4.73604709]
[1763954116022,4.73604709,133.28,133.21,7.50640194]
[1763954116216,4.73604709,133.27,133.23,4.73604709]
[1763954116525,4.73604709,133.27,133.22,4.73604709]
[1763954116732,0.69,133.26,133.23,4.73604709]
[1763954117334,22.85700709,133.29,133.24,4.73604709]
[1763954117644,0.69,133.28,133.26,4.73604709]
[1763954118245,4.73604709,133.31,133.27,4.73604709]
[1763954118558,0.69,133.3,133.28,4.73604709]
[1763954119230,0.69,133.3,133.27,4.73604709]
[1763954120131,0.69,133.3,133.27,22.85700709]
[1763954120372,4.73604709,133.32,133.28,4.73604709]
[1763954120641,0.14898144,133.33,133.31,4.73604709]
[1763954120835,0.14898144,133.33,133.29,0.66]
[1763954121041,0.14898144,133.33,133.32,4.73604709]
[1763954121929,0.14898144,133.33,133.32,23.51700709]